fUSD/lending_fUSD_20251225
["ID","MTS","AMOUNT","RATE_DAILY","PERIOD"]
[399779094,1766665838260,-1930.97,0.00011607,2]
[399779095,1766665838270,-150.0,0.0001168,2]
[399779096,1766665838280,-500.0,0.0001168,2]
[399779097,1766665838290,-500.0,0.0001168,2]
[399779098,1766665838299,-1049.37,0.00011687,2]
[399779099,1766665838309,-500.0,0.00011703,2]
[399779100,1766665838319,-150.0,0.00011707,2]
[399779101,1766665838329,-500.0,0.00011707,2]
[399779102,1766665838339,-506.58520274,0.00011707,2]
[399779103,1766665838348,-200.0,0.00011735,2]
[399779104,1766665838359,-500.0,0.00011735,2]
[399779105,1766665838369,-500.0,0.00011762,2]
[399779106,1766665838379,-578.96689898,0.0001179,2]
[399779107,1766665838388,-157.24637366,0.00011861,2]
[399779108,1766665838398,-500.0,0.00011861,2]
[399779109,1766665838408,-150.0,0.00011861,2]
[399779110,1766665838418,-500.0,0.00011861,2]
[399779111,1766665838428,-500.0,0.00011861,2]
[399779112,1766665838438,-150.0,0.00011861,2]
[399779113,1766665838448,-150.0,0.00011861,2]
[399779114,1766665838457,-48083.53973055,0.00011868,2]
[399779115,1766665838468,-500.0,0.00011888,2]
[399779116,1766665838478,-150.0,0.00011888,2]
[399779117,1766665838487,-500.0,0.00011888,2]
[399779118,1766665838497,-500.0,0.00011888,2]
[399779119,1766665838506,-164.91223401,0.000119,2]
[399779120,1766665838516,-578.60342662,0.000119,2]
[399779121,1766665838526,-500.0,0.000119,2]
[399779122,1766665838535,-501.7326664,0.000119,2]
[399779123,1766665838545,-322.88246699,0.000119,2]
[399779124,1766665838555,-500.0,0.000119,2]
[399779125,1766665838564,-500.0,0.000119,2]
[399779126,1766665838574,-500.0,0.000119,2]
[399779127,1766665838584,-500.0,0.000119,2]
[399779128,1766665838594,-500.0,0.000119,2]
[399779129,1766665838605,-500.0,0.000119,2]
[399779130,1766665838615,-500.26609484,0.000119,2]
[399779131,1766665838624,-500.0,0.000119,2]
[399779132,1766665838637,-500.0,0.000119,2]
[399779133,1766665838647,-157.08021771,0.000119,2]
[399779134,1766665838657,-162.14010423,0.000119,2]
[399779135,1766665838667,-162.97042988,0.000119,2]
[399779136,1766665838678,-174.86770557,0.000119,2]
[399779137,1766665838688,-611.24692566,0.00011911,2]
[399779138,1766665838698,-500.0,0.00011916,2]
[399779139,1766665838708,-150.0,0.00011916,2]
[399779140,1766665838719,-500.0,0.00011916,2]
[399779141,1766665838728,-500.0,0.00011916,2]
[399779142,1766665838739,-1930.97,0.00011921,2]
[399779143,1766665838749,-500.0,0.00011943,2]
[399779144,1766665838759,-500.0,0.00011943,2]
[399779145,1766665838769,-200.0,0.00011943,2]
[399779146,1766665838779,-500.0,0.00011943,2]
[399779147,1766665838789,-2315.72630789,0.00011946,2]
[399779148,1766665838799,-19393.81,0.00011954,2]
[399779149,1766665838810,-1049.37,0.00011961,2]
[399779150,1766665838820,-15401.10219233,0.00011968,2]
[399779151,1766665838830,-500.0,0.00011971,2]
[399779152,1766665838840,-466.07661958,0.00011971,2]
[399779153,1766665838850,-500.0,0.00011998,2]
[399779154,1766665838859,-500.0,0.00012025,2]
[399779155,1766665838869,-500.0,0.00012053,2]
[399779156,1766665838879,-500.0,0.0001208,2]
[399779157,1766665838890,-500.0,0.00012108,2]
[399779158,1766665838899,-500.0,0.00012135,2]
[399779159,1766665838909,-200.0,0.00012135,2]
[399779160,1766665838919,-200.0,0.00012135,2]
[399779161,1766665838928,-500.0,0.00012135,2]
[399779162,1766665838939,-203.25840165,0.00012162,2]
[399779163,1766665838949,-1049.37,0.00012235,2]
[399779164,1766665838959,-500.0,0.00012409,2]
[399779165,1766665838970,-150.0,0.00012409,2]
[399779166,1766665838981,-183.77130644,0.00012409,2]
[399779167,1766665838991,-1668.0,0.00012409,2]
[399779168,1766665839001,-500.0,0.00012409,2]
[399779169,1766665839011,-500.0,0.00012409,2]
[399779170,1766665839022,-500.0,0.00012409,2]
[399779171,1766665839032,-592.70788689,0.00012417,2]
[399779172,1766665839043,-48083.53973054,0.00012427,2]
[399779173,1766665839055,-500.0,0.00012436,2]
[399779174,1766665839065,-150.0,0.00012436,2]
[399779175,1766665839076,-1668.0,0.00012436,2]
[399779176,1766665839088,-500.0,0.00012436,2]
[399779177,1766665839098,-500.0,0.00012436,2]
[399779178,1766665839108,-500.0,0.00012436,2]
[399779179,1766665839118,-500.0,0.00012448,2]
[399779180,1766665839128,-168.84175508,0.00012448,2]
[399779181,1766665839137,-500.0,0.00012464,2]
[399779182,1766665839147,-1668.0,0.00012464,2]
[399779183,1766665839156,-500.0,0.00012464,2]
[399779184,1766665839165,-500.0,0.00012464,2]
[399779185,1766665839176,-500.0,0.00012464,2]
[399779186,1766665839185,-500.0,0.00012491,2]
[399779187,1766665839196,-1668.0,0.00012491,2]
[399779188,1766665839206,-500.0,0.00012491,2]
[399779189,1766665839216,-500.0,0.00012491,2]
[399779190,1766665839226,-264.67458914,0.00012491,2]
[399779191,1766665839236,-1049.38238286,0.00012509,2]
[399779192,1766665839247,-500.0,0.00012519,2]
[399779193,1766665839257,-1668.0,0.00012519,2]
[399779194,1766665839267,-252.2515866,0.00012519,2]
[399779195,1766665839278,-500.0,0.00012519,2]
[399779196,1766665839288,-500.0,0.00012546,2]
[399779197,1766665839298,-1668.0,0.00012546,2]
[399779198,1766665839309,-500.0,0.00012546,2]
[399779199,1766665839319,-587.0,0.00012562,2]
[399779200,1766665839329,-587.0,0.00012562,2]
[399779201,1766665839339,-2351.0,0.00012572,2]
[399779202,1766665839349,-500.0,0.00012573,2]
[399779203,1766665839359,-1668.0,0.00012573,2]
[399779204,1766665839369,-500.0,0.00012573,2]
[399779205,1766665839379,-500.0,0.00012601,2]
[399779206,1766665839389,-1668.0,0.00012601,2]
[399779207,1766665839399,-500.0,0.00012601,2]
[399779208,1766665839411,-1600.0,0.00012622,2]
[399779209,1766665839422,-500.0,0.00012628,2]
[399779210,1766665839432,-1668.0,0.00012628,2]
[399779211,1766665839442,-500.0,0.00012628,2]
[399779212,1766665839452,-500.0,0.00012656,2]
[399779213,1766665839462,-1668.0,0.00012656,2]
[399779214,1766665839472,-500.0,0.00012656,2]
[399779215,1766665839482,-500.0,0.00012683,2]
[399779216,1766665839498,-1668.0,0.00012683,2]
[399779217,1766665839508,-500.0,0.00012683,2]
[399779218,1766665839518,-200.0,0.00012683,2]
[399779219,1766665839527,-200.0,0.00012683,2]
[399779220,1766665839537,-500.0,0.00012683,2]
[399779221,1766665839547,-500.0,0.0001271,2]
[399779222,1766665839557,-1668.0,0.0001271,2]
[399779223,1766665839576,-162.55809121,0.0001271,2]
[399779224,1766665839587,-500.0,0.00012738,2]
[399779225,1766665839598,-1668.0,0.00012738,2]
[399779226,1766665839607,-15401.10219233,0.00012757,2]
[399779227,1766665839617,-500.0,0.00012765,2]
[399779228,1766665839627,-1668.0,0.00012765,2]
[399779229,1766665839641,-2315.72630789,0.00012771,2]
[399779230,1766665839651,-500.0,0.00012793,2]
[399779231,1766665839661,-1668.0,0.00012793,2]
[399779232,1766665839671,-633.0,0.0001282,2]
[399779233,1766665839683,-1668.0,0.0001282,2]
[399779234,1766665839692,-1668.0,0.00012847,2]
[399779235,1766665839708,-1668.0,0.00012875,2]
[399779236,1766665839719,-1668.0,0.00012902,2]
[399779237,1766665839729,-1668.0,0.0001293,2]
[399779238,1766665839739,-1668.0,0.00012957,2]
[399779239,1766665839749,-1668.0,0.00012984,2]
[399779240,1766665839759,-48083.53973054,0.00012986,2]
[399779241,1766665839768,-1668.0,0.00013012,2]
[399779242,1766665839778,-115252.43,0.00013021,2]
[399779243,1766665839787,-1673.18181479,0.00013039,2]
[399779244,1766665839799,-166.66,0.00013215,2]
[399779245,1766665839809,-215.0738,0.0001323,2]
[399779246,1766665839818,-200.0,0.00013231,2]
[399779247,1766665839827,-200.0,0.00013231,2]
[399779248,1766665839837,-500.0,0.00013231,2]
[399779249,1766665839847,-600.0,0.00013332,2]
[399779250,1766665839857,-500.0,0.00013424,2]
[399779251,1766665839867,-500.0,0.00013424,2]
[399779252,1766665839878,-150.0,0.00013424,2]
[399779253,1766665839888,-500.0,0.00013424,2]
[399779254,1766665839899,-150.0,0.00013424,2]
[399779255,1766665839909,-209.54901978,0.00013424,2]
[399779256,1766665839919,-500.0,0.00013451,2]
[399779257,1766665839928,-500.0,0.00013451,2]
[399779258,1766665839938,-187.27787589,0.00013451,2]
[399779259,1766665839949,-500.0,0.00013451,2]
[399779260,1766665839960,-257.86837201,0.00013451,2]
[399779261,1766665839970,-500.0,0.00013479,2]
[399779262,1766665839981,-620.76763019,0.00013479,2]
[399779263,1766665839990,-500.0,0.00013479,2]
[399779264,1766665840000,-166.66,0.00013494,2]
[399779265,1766665840010,-500.0,0.00013506,2]
[399779266,1766665840020,-500.0,0.00013506,2]
[399779267,1766665840030,-500.0,0.00013534,2]
[399779268,1766665840041,-500.0,0.00013534,2]
[399779269,1766665840050,-48083.53973054,0.00013545,2]
[399779270,1766665840065,-15401.10219233,0.00013546,2]
[399779272,1766665840076,-500.0,0.00013561,2]
[399779274,1766665840085,-500.0,0.00013561,2]
[399779275,1766665840095,-500.0,0.00013588,2]
[399779276,1766665840105,-294.24474848,0.00013588,2]
[399779277,1766665840115,-2315.72630789,0.00013597,2]
[399779278,1766665840125,-1557.66737323,0.00013598,2]
[399779279,1766665840135,-500.0,0.00013616,2]
[399779280,1766665840145,-500.0,0.00013643,2]
[399779281,1766665840156,-500.0,0.00013671,2]
[399779282,1766665840167,-4024.22,0.00013689,2]
[399779283,1766665840177,-500.0,0.00013698,2]
[399779284,1766665840187,-500.0,0.00013698,2]
[399779285,1766665840198,-500.0,0.00013698,2]
[399779286,1766665840209,-500.0,0.00013698,2]
[399779287,1766665840219,-500.0,0.00013698,2]
[399779288,1766665840229,-500.0,0.00013698,2]
[399779289,1766665840238,-500.0,0.00013698,2]
[399779290,1766665840248,-289.9076874,0.00013698,2]
[399779291,1766665840258,-500.0,0.00013698,2]
[399779292,1766665840268,-500.0,0.00013698,2]
[399779293,1766665840278,-500.0,0.00013698,2]
[399779294,1766665840288,-321.45865313,0.00013698,2]
[399779295,1766665840297,-500.0,0.00013698,2]
[399779296,1766665840307,-500.0,0.00013698,2]
[399779297,1766665840319,-708.1,0.00013699,2]
[399779298,1766665840328,-177.52316721,0.00013699,2]
[399779299,1766665840338,-285.92,0.000137,2]
[399779300,1766665840348,-285.92,0.000137,2]
[399779301,1766665840359,-285.92,0.000137,2]
[399779302,1766665840369,-285.92,0.000137,2]
[399779303,1766665840379,-285.92,0.000137,2]
[399779304,1766665840390,-250.0,0.0001373,2]
[399779305,1766665840400,-166.66,0.00013772,2]
[399779306,1766665840411,-200.0,0.00013779,2]
[399779307,1766665840427,-200.0,0.00013779,2]
[399779308,1766665840438,-500.0,0.00013779,2]
[399779309,1766665840449,-823.0,0.00013813,2]
[399779310,1766665840460,-436.0,0.00013813,2]
[399779311,1766665840470,-3292.0,0.00013829,2]
[399779312,1766665840480,-98001.91,0.000139,2]
[399779313,1766665840491,-1600.0,0.00014025,2]
[399779314,1766665840501,-166.66,0.0001405,2]
[399779315,1766665840511,-48083.53973054,0.00014104,2]
[399779316,1766665840522,-1000.0,0.00014302,2]
[399779317,1766665840531,-200.0,0.00014327,2]
[399779318,1766665840542,-200.0,0.00014327,2]
[399779319,1766665840552,-500.0,0.00014327,2]
[399779320,1766665840562,-166.66,0.00014328,2]
[399779321,1766665840572,-15401.10219233,0.00014334,2]
[399779322,1766665840582,-2315.72630789,0.00014423,2]
[399779323,1766665840592,-166.66,0.00014606,2]
[399779324,1766665840603,-48083.53973054,0.00014664,2]
[399779325,1766665840612,-1000.0,0.00014744,2]
[399779326,1766665840622,-307.97721752,0.00014875,2]
[399779327,1766665840633,-500.0,0.00014875,2]
[399779328,1766665840643,-151.0,0.00014908,2]
[399779329,1766665840653,-151.0,0.00014908,2]
[399779330,1766665840662,-151.0,0.00014962,2]
[399779331,1766665840672,-1557.66737322,0.00015115,2]
[399779332,1766665840683,-15401.10219233,0.00015123,2]
[399779333,1766665840693,-1152.0,0.00015188,2]
[399779334,1766665840705,-4609.0,0.00015212,2]
[399779335,1766665840715,-48083.53973054,0.00015223,2]
[399779336,1766665840725,-2315.72630789,0.00015249,2]
[399779337,1766665840734,-309.46072033,0.00015317,2]
[399779338,1766665840745,-1600.0,0.00015427,2]
[399779339,1766665840756,-150.0,0.00015533,2]
[399779340,1766665840765,-48083.53973054,0.00015782,2]
[399779341,1766665840776,-15401.10219233,0.00015912,2]
[399779342,1766665840790,-223.0315306,0.00015969,2]
[399779343,1766665840800,-500.0,0.00016,2]
[399779344,1766665840810,-2315.72630789,0.00016074,2]
[399779345,1766665840819,-500.0,0.00016183,2]
[399779346,1766665840829,-349.16265713,0.00016183,2]
[399779347,1766665840839,-500.0,0.00016183,2]
[399779348,1766665840849,-515.54072242,0.00016183,2]
[399779349,1766665840859,-500.0,0.00016183,2]
[399779350,1766665840868,-500.0,0.00016183,2]
[399779351,1766665840878,-648.46173605,0.00016183,2]
[399779352,1766665840888,-500.0,0.00016183,2]
[399779353,1766665840898,-500.0,0.00016183,2]
[399779354,1766665840908,-500.0,0.00016183,2]
[399779355,1766665840918,-500.0,0.00016183,2]
[399779356,1766665840928,-500.0,0.00016183,2]
[399779357,1766665840938,-500.0,0.00016183,2]
[399779358,1766665840948,-500.0,0.00016183,2]
[399779359,1766665840958,-559.28446362,0.00016183,2]
[399779360,1766665840968,-160.176,0.00016183,2]
[399779361,1766665840978,-500.0,0.00016183,2]
[399779362,1766665840988,-500.0,0.00016183,2]
[399779363,1766665840998,-500.0,0.00016183,2]
[399779364,1766665841008,-500.0,0.00016183,2]
[399779365,1766665841018,-500.0,0.00016183,2]
[399779366,1766665841028,-500.0,0.00016183,2]
[399779367,1766665841038,-500.0,0.00016183,2]
[399779368,1766665841048,-500.0,0.00016183,2]
[399779369,1766665841058,-500.0,0.00016183,2]
[399779370,1766665841068,-500.0,0.00016183,2]
[399779371,1766665841077,-500.0,0.00016183,2]
[399779372,1766665841087,-500.0,0.00016183,2]
[399779373,1766665841097,-500.0,0.00016183,2]
[399779374,1766665841107,-500.66742167,0.00016183,2]
[399779375,1766665841116,-500.0,0.00016183,2]
[399779376,1766665841126,-500.0,0.00016183,2]
[399779377,1766665841135,-500.0,0.00016183,2]
[399779378,1766665841149,-500.0,0.00016183,2]
[399779379,1766665841159,-500.0,0.00016183,2]
[399779380,1766665841169,-68946.35788674,0.000162,5]
[399779381,1766665841180,-48083.53973054,0.00016341,2]
[399779382,1766665841191,-228.0,0.000164,2]
[399779383,1766665841201,-319.0,0.000164,2]
[399779384,1766665841211,-182.0,0.000164,2]
[399779385,1766665841222,-184.24951816,0.000164,2]
[399779386,1766665841232,-500.0,0.00016438,2]
[399779387,1766665841243,-716.0,0.00016438,2]
[399779388,1766665841254,-800.0,0.00016438,2]
[399779389,1766665841264,-809.0,0.00016438,2]
[399779390,1766665841274,-500.0,0.00016465,2]
[399779391,1766665841285,-500.0,0.00016493,2]
[399779392,1766665841297,-500.0,0.0001652,2]
[399779393,1766665841307,-500.0,0.00016548,2]
[399779394,1766665841317,-500.0,0.00016575,2]
[399779395,1766665841327,-358.86034089,0.000166,2]
[399779396,1766665841337,-500.0,0.00016602,2]
[399779397,1766665841348,-205.805,0.00016609,2]
[399779398,1766665841361,-3634.563,0.00016609,2]
[399779399,1766665841372,-3240.0,0.00016619,2]
[399779400,1766665841383,-500.0,0.0001663,2]
[399779401,1766665841393,-1557.66737322,0.00016631,2]
[399779402,1766665841404,-500.0,0.0001664,2]
[399779403,1766665841414,-500.0,0.0001664,2]
[399779404,1766665841425,-500.0,0.0001664,2]
[399779405,1766665841435,-500.0,0.00016657,2]
[399779406,1766665841446,-218.80351721,0.00016685,2]
[399779407,1766665841457,-15401.10219233,0.000167,2]
[399779408,1766665841467,-1344.0,0.00016701,2]
[399779409,1766665841478,-163.74,0.00016712,2]
[399779410,1766665841488,-308.61264672,0.00016731,2]
[399779411,1766665841804,-500.0,0.00016731,2]
[399779412,1766665841817,-500.0,0.00016731,2]
[399779413,1766665841827,-500.0,0.00016731,2]
[399779414,1766665841837,-500.0,0.00016731,2]
[399779415,1766665841847,-598.60555363,0.00016731,2]
[399779416,1766665841858,-500.0,0.00016731,2]
[399779417,1766665841868,-500.0,0.00016731,2]
[399779418,1766665841878,-500.0,0.00016731,2]
[399779419,1766665841888,-500.0,0.00016731,2]
[399779420,1766665841898,-500.0,0.00016731,2]
[399779421,1766665841907,-500.0,0.00016731,2]
[399779422,1766665841917,-500.0,0.00016731,2]
[399779423,1766665841928,-207.3850141,0.00016731,2]
[399779424,1766665841938,-500.0,0.00016731,2]
[399779425,1766665841948,-500.0,0.00016731,2]
[399779426,1766665841959,-500.0,0.00016731,2]
[399779427,1766665841969,-500.0,0.00016731,2]
[399779428,1766665841979,-5748.0,0.00016734,2]
[399779429,1766665841995,-1600.0,0.0001683,2]
[399779430,1766665842006,-48083.53973054,0.000169,2]
[399779431,1766665842018,-1593.63220129,0.000169,2]
[399779432,1766665842029,-2315.72630789,0.000169,2]
[399779433,1766665842040,-6397.42488084,0.000169,2]
[399779434,1766665842050,-789.11969302,0.000169,2]
[399779435,1766665842061,-156.81485744,0.000169,2]
[399779436,1766665842072,-500.0,0.0001697,2]
[399779437,1766665842083,-500.0,0.0001697,2]
[399779438,1766665842094,-800.78551976,0.0001697,2]
[399779439,1766665842105,-500.0,0.00016973,2]
[399779440,1766665842117,-150.0,0.00016973,2]
[399779441,1766665842128,-592.70788689,0.0001699,2]
[399779442,1766665842139,-592.70788689,0.0001699,2]
[399779443,1766665842151,-300.0,0.00016999,2]
[399779444,1766665842162,-666.0,0.00016999,2]
[399779445,1766665842172,-300.0,0.00016999,2]
[399779446,1766665842183,-2000.0,0.00017,2]
[399779447,1766665842193,-250.0,0.00017,2]
[399779448,1766665842205,-641783.98383465,0.00017,2]
[399779463,1766665842460,-2053.64958982,0.00017,2]
[399779465,1766665842591,-2993.80498,0.00017,2]
[399779466,1766665842608,-1670.25,0.00017,2]
[399779467,1766665842621,-258.6914863,0.00017,2]
[399779468,1766665842636,-613.23554614,0.00017,2]
[399779469,1766665842658,-341951.98906798,0.00017,2]
[399779470,1766665842671,-590.9981233,0.00017,2]
[399779471,1766665842684,-999.0,0.00017,2]
[399779472,1766665842701,-359.34614479,0.00017,2]
[399779473,1766665842716,-533.10792548,0.00017,2]
[399779474,1766665842727,-591.566251,0.00017,2]
[399779475,1766665842740,-4979.76509798,0.00017,2]
[399779476,1766665843297,-1.7e-07,0.00017,2]
[399779477,1766665843310,-1875294.0481905,0.00017,2]
[399779478,1766665843331,-5927.00000003,0.00017,2]
[399779479,1766665843443,-17257.1212,0.00017,2]
[399779480,1766665843456,-42850.62634397,0.00017,2]
[399779481,1766665843468,-2799.52288,0.00017,2]
[399779482,1766665843484,-855555.01815688,0.00017,2]
[399779483,1766665843501,-282.36355332,0.00017,2]
[399779484,1766665843518,-428.03955324,0.00017,2]
[399779485,1766665843530,-18159.32056425,0.00017,2]
[399779487,1766665845566,-694.92089213,0.00017,2]
[399779491,1766665849500,-869.29227437,0.00017,2]
[399779492,1766665849512,-1338.67452469,0.00017,2]
[399779493,1766665849525,-1169.3192,0.00017,2]
[399779494,1766665849537,-613.8076229,0.00017,2]
[399779495,1766665849548,-12305.62174631,0.00017,2]
[399779496,1766665849564,-2147.1,0.00017,2]
[399779500,1766665946467,-327.40110584,0.0001049,2]
[399779501,1766665946490,-378.81278687,0.0001049,2]
[399779502,1766665946512,-300.0,0.00011539,2]
[399779503,1766665946535,-300.0,0.00012094,2]
[399779504,1766665946558,-500.0,0.00013698,2]
[399779505,1766665946581,-155.19830899,0.00013698,2]
[399779506,1766665946604,-500.0,0.00013698,2]
[399779507,1766665946627,-500.0,0.00013698,2]
[399779508,1766665946668,-500.0,0.00013698,2]
[399779509,1766665946696,-500.0,0.00013698,2]
[399779510,1766665946719,-500.0,0.00013698,2]
[399779511,1766665946743,-500.0,0.00013698,2]
[399779512,1766665946765,-500.0,0.00013698,2]
[399779513,1766665946787,-300.0,0.00014319,2]
[399779514,1766665946810,-250.0,0.00014548,2]
[399779515,1766665946843,-838.5877983,0.00014941,2]
[399779523,1766666104597,-500.0,0.0001049,2]
[399779524,1766666104627,-196.34804293,0.0001049,2]
[399779551,1766666742037,999.0,0.00013384,3]
[399779557,1766667031496,-240.0,0.00011015,2]
[399779558,1766667031507,-21.61730678,0.00011048,2]
[399779559,1766667031519,-228.38269322,0.00011048,2]
[399779560,1766667031530,-153.36135413,0.00011325,2]
[399779561,1766667031542,-96.63864587,0.00011325,2]
[399779562,1766667031552,-2390.30605478,0.000118,2]
[399779563,1766667031562,-167.14084097,0.00012008,2]
[399779564,1766667031572,-673.90403464,0.00012016,2]
[399779565,1766667031583,-300.0,0.00012117,2]
[399779566,1766667031593,-300.0,0.00012117,2]
[399779567,1766667031603,-250.0,0.00012117,2]
[399779568,1766667031613,-175.22,0.00012285,2]
[399779569,1766667031624,-197.55,0.00013066,2]
[399779570,1766667031634,-563.04,0.00013246,2]
[399779571,1766667031644,-1200.0,0.00013269,2]
[399779572,1766667031654,-75.18799623,0.0001327,2]
[399779573,1766667031667,-598.71603841,0.0001327,2]
[399779574,1766667031677,-177.60836804,0.00013286,2]
[399779575,1766667031690,-122.39163196,0.00013286,2]
[399779576,1766667031700,-300.0,0.00013286,2]
[399779577,1766667031710,-122.95852702,0.00013287,2]
[399779578,1766667031723,-9877.03147298,0.00013287,2]
[399779579,1766667031733,-299.99,0.00013287,2]
[399779580,1766667031743,-150.99,0.00013287,2]
[399779581,1766667031753,-159.91,0.00013297,2]
[399779582,1766667031763,-215.57,0.00013421,2]
[399779583,1766667031772,-5691.17,0.00013491,2]
[399779584,1766667031782,-150.0,0.00013554,2]
[399779586,1766667031792,-150.0,0.00013554,2]
[399779588,1766667031801,-150.0,0.00013581,2]
[399779590,1766667031811,-150.0,0.00013581,2]
[399779592,1766667031820,-200.0,0.00013609,2]
[399779593,1766667031836,-200.0,0.00013609,2]
[399779594,1766667031846,-150.0,0.00013696,2]
[399779595,1766667031856,-245.59649034,0.00013697,2]
[399779596,1766667031866,-500.0,0.00013697,2]
[399779597,1766667031876,-500.0,0.00013697,2]
[399779598,1766667031886,-500.0,0.00013697,2]
[399779599,1766667031895,-588.44431716,0.00013697,2]
[399779600,1766667031906,-500.0,0.00013698,2]
[399779601,1766667031916,-500.0,0.00013698,2]
[399779602,1766667031926,-500.0,0.00013698,2]
[399779603,1766667031936,-500.0,0.00013698,2]
[399779604,1766667031946,-500.0,0.00013698,2]
[399779605,1766667031956,-622.31367143,0.00013698,2]
[399779606,1766667031966,-500.0,0.00013698,2]
[399779607,1766667031977,-500.0,0.00013698,2]
[399779608,1766667031987,-500.0,0.00013698,2]
[399779609,1766667031998,-500.0,0.00013698,2]
[399779610,1766667032008,-500.0,0.00013698,2]
[399779611,1766667032018,-514.26394542,0.00013698,2]
[399779612,1766667032028,-500.0,0.00013698,2]
[399779613,1766667032038,-500.0,0.00013698,2]
[399779614,1766667032047,-500.0,0.00013698,2]
[399779615,1766667032057,-500.0,0.00013698,2]
[399779616,1766667032068,-500.0,0.00013698,2]
[399779617,1766667032078,-507.55739974,0.00013698,2]
[399779618,1766667032087,-378.43,0.00013698,2]
[399779619,1766667032098,-1000.0,0.00013699,2]
[399779620,1766667032109,-166.66,0.0001378,2]
[399779621,1766667032120,-322.6107,0.00013828,2]
[399779622,1766667032130,-578.20924308,0.00013828,2]
[399779623,1766667032139,-200.0,0.00013828,2]
[399779624,1766667032149,-207.4,0.00013828,2]
[399779625,1766667032159,-215.0738,0.00013828,2]
[399779626,1766667032169,-223.0315306,0.00013828,2]
[399779627,1766667032179,-231.28369723,0.00013828,2]
[399779628,1766667032194,-239.84119403,0.00013828,2]
[399779629,1766667032204,-248.71531821,0.00013828,2]
[399779630,1766667032214,-257.91778498,0.00013828,2]
[399779631,1766667032223,-267.46074303,0.00013828,2]
[399779632,1766667032235,-277.35679052,0.00013828,2]
[399779633,1766667032246,-507.31246157,0.00013828,2]
[399779634,1766667032256,-5875.46,0.00013939,2]
[399779635,1766667032266,-378.43,0.00013972,2]
[399779636,1766667032276,-500.0,0.00014104,2]
[399779637,1766667032286,-167.02729269,0.00014144,2]
[399779638,1766667032296,-166.66,0.00014235,2]
[399779639,1766667032307,-378.43,0.00014246,2]
[399779640,1766667032317,-500.0,0.00014416,2]
[399779641,1766667032327,-571.31738029,0.00014475,2]
[399779642,1766667032337,-311.79606785,0.00014475,2]
[399779643,1766667032347,-378.43,0.0001452,2]
[399779644,1766667032357,-673.90403464,0.00014524,2]
[399779645,1766667032367,-271196.98233907,0.00014532,2]
[399779646,1766667032379,-3086.83232117,0.00014532,2]
[399779647,1766667032391,-8804.60026289,0.00014532,2]
[399779648,1766667032411,-3040.84055057,0.00014532,2]
[399779649,1766667032423,-2609.5598784,0.00014532,2]
[399779650,1766667032435,-2653.7957141,0.00014532,2]
[399779653,1766667037809,-708607.3889338,0.00014532,2]
[399779654,1766667037820,-420.0,0.00014566,2]
[399779655,1766667037830,-300.0,0.00014566,2]
[399779656,1766667037841,-773.57,0.00014575,2]
[399779657,1766667037851,-1680.0,0.00014596,2]
[399779659,1766667037862,-157.95980224,0.00014621,2]
[399779661,1766667037872,-595.11105983,0.00014621,2]
[399779664,1766667037882,-59866.75325996,0.00014622,2]
[399779666,1766667037893,-395.13859126,0.00014622,2]